[Event "Susha Chess Rapid Women 2022"]
[Site "Shusha"]
[Date "2022.09.22"]
[Round "3.2"]
[White "Arabidze, Meri"]
[Black "Zawadzka, Jolanta"]
[Result "1-0"]
[ECO "D43"]
[WhiteElo "2422"]
[BlackElo "2401"]
[Annotator "TA"]
[PlyCount "84"]
[EventDate "2022.09.21"]
[EventType "tourn"]
[EventCountry "AZE"]
[SourceTitle "playchess.com"]
[Source "ChessBase"]
[SourceQuality "1"]
[TimeControl "900+10"]

{[%evp 13,84,-31,0,-68,-75,-74,-12,-73,-66,-81,0,0,-5,-20,-18,-26,-26,-57,-29,-60,-46,-41,-57,-63,0,0,-7,0,0,0,0,0,0,-28,0,-31,-12,-491,-287,-592,0,0,0,0,-9,-45,-18,-25,83,51,132,102,1057,829,1112,1103,3052,2522,1035,1018,29995,29995,29996,29995,29995,29996,29996,29997,29997,29998,29998,29999,29999]} 1. d4 {[%emt 0:00:02]} d5 {[%emt 0:00:01]} 2. c4 {[%emt 0:00:02]} e6 {[%emt 0:00:02]} 3. Nf3 {[%emt 0:00:06]} Nf6 {[%emt 0:00:02]} 4. Nc3 {[%emt 0:00:03]} c6 {[%emt 0:00:02]} 5. g3 {[%emt 0:00:20]} dxc4 {[%emt 0:00:32]} 6. Bg2 {[%emt 0:00:00]} b5 {[%emt 0:00:02][%cal Bb7b5,Bb5b4][%mdl 32]} 7. O-O {[%emt 0:00:40]} Nbd7 {[%emt 0:00:04]} (7... Bb7 {seems wilder.} 8. Ne5 a6 9. b3 b4) 8. a4 {[%emt 0:00:49] E01: Catalan: Early deviations.} (8. e4 $11) 8... b4 $15 {[%emt 0:00:40]} 9. Nb1 {[%emt 0:00:01]} Be7 {[%emt 0:01:04] [#]} (9... Ba6 $1 $17 10. Bg5 Rc8) 10. Re1 $146 {[%emt 0:02:54]} (10. Bg5 $11 {keeps the balance.}) ({Predecessor:} 10. Qc2 Ba6 11. Re1 O-O 12. Nbd2 b3 13. Qb1 Nd5 14. Nf1 Nb4 15. Ne3 Nf6 16. Rd1 {½-½ (43) Agustsson,G-Darga,K Amsterdam 1954}) 10... O-O {[%emt 0:00:21]} 11. e4 {[%emt 0:00:10]} e5 {[%emt 0:01:29]} ({Black should try} 11... a5 $17) 12. Nbd2 $11 {[%emt 0:02:21]} Ba6 {[%emt 0:03:07]} 13. Bf1 $1 {[%emt 0:01:46]} exd4 {[%emt 0:00:03]} 14. Nxc4 {[%emt 0:00:52]} c5 {[%emt 0:00:09]} 15. a5 {[%emt 0:00:07]} Ne8 {[%emt 0:03:36]} 16. e5 {[%emt 0:00:25]} Nc7 {[%emt 0:00:17]} 17. Bd3 {[%emt 0:00:18]} Bb7 {[%emt 0:00:27]} 18. Nfd2 {[%emt 0:00:52]} f5 {[%emt 0:02:26]} (18... Bd5 $15) 19. Nd6 $1 {[%emt 0:00:57]} Bxd6 {[%emt 0:00:02]} 20. exd6 {[%emt 0:00:03] Hoping for a6.} Nd5 {[%emt 0:00:01]} 21. Nc4 $1 {[%emt 0:00:41]} Qf6 {[%emt 0:00:23]} 22. a6 {[%emt 0:02:34]} Bc6 {[%emt 0:00:02] Black wants to play ...Rae8.} 23. Qh5 {[%emt 0:01:41] Prevents Rae8. Black must now prevent Bg5.} g6 {[%emt 0:01:46]} 24. Qh6 {[%emt 0:00:11] Threatens to win with Bg5.} f4 {[%emt 0:00:45]} (24... Rae8 $5 {[%cal Re8e1]} 25. Bg5 Qf7 $11) 25. g4 {[%emt 0:00:31][%mdl 8192] [#]} (25. Bxf4 $11 Nxf4 26. gxf4 Qxf4 27. Qxf4 Rxf4 28. Ne5 Nxe5 29. Rxe5) 25... Rae8 {[%emt 0:00:10]} (25... Ne3 $142 $1 {[%mdl 512]} 26. Qh3 (26. fxe3 fxe3) 26... Rae8 $1) 26. Bd2 $2 {[%emt 0:00:02] [#]} (26. Rxe8 {nothing else works.} Rxe8 27. Bd2) 26... Ne5 $2 {[%emt 0:00:58]} (26... Ne3 $1 $19 {[%mdl 512]} 27. Qh3 (27. Bxe3 dxe3) 27... Bg2) 27. Nxe5 {[%emt 0:00:25] Dancing on a razor blade.} Rxe5 {[%emt 0:00:01]} 28. Rxe5 {[%emt 0:00:29]} Qxe5 {[%emt 0:00:01]} 29. Re1 {[%emt 0:00:21]} Qxd6 {[%emt 0:00:04][%cal Od5e3]} (29... Ne3 $5 30. fxe3 dxe3 $11) 30. Bc4 {[%emt 0:00:12]} Qd7 {[%emt 0:01:06] [#]} (30... d3 $11) 31. Qg5 $1 $16 {[%emt 0:00:06] Strongly threatening Re5. White is much more active.} Kh8 {[%emt 0:00:16]} (31... Rf7 $14) 32. h3 $40 {[%emt 0:00:13][%mdl 128] Qe5+ is the strong threat. White is out for blood.} Nf6 $2 {[%emt 0:00:06][%mdl 8192]} (32... Qd6 $16) 33. Bxf4 {[%emt 0:00:08][%cal Bd2f4,Bf4e5,Be5f6][%mdl 32] This bishop pair is nice.} Bd5 {[%emt 0:00:04]} 34. Be5 {[%emt 0:00:16]} Bxc4 {[%emt 0:00:06]} 35. Bxf6+ {[%emt 0:00:00][%mdl 64] Discovered Attack} Kg8 {[%emt 0:00:01]} 36. Re7 {[%emt 0:00:04][%mdl 64] Skewer} Qc6 {[%emt 0:00:09]} 37. Rg7+ {[%emt 0:00:04] White mates.} Kh8 {[%emt 0:00:05]} 38. Rxh7+ {[%emt 0:00:18][%mdl 64] Decoy} Kxh7 {[%emt 0:00:05]} 39. Qh4+ {[%emt 0:00:00]} Kg8 {[%emt 0:00:02]} 40. Qh8+ {[%emt 0:00:01]} Kf7 {[%emt 0:00:01]} 41. Qg7+ {[%emt 0:00:02][%mdl 64] Skewer} Ke6 {[%emt 0:00:05]} 42. Qe7+ {[%emt 0:00:01]} Kd5 {Quite a comeback for White.  Weighted Error Value: White=0.43/Black=0.69} 1-0

[Event "Susha Chess Rapid Women 2022"]
[Site "Shusha"]
[Date "2022.09.22"]
[Round "3.3"]
[White "Dzagnidze, Nana"]
[Black "Mammadova, Gulnar"]
[Result "1-0"]
[ECO "A27"]
[WhiteElo "2526"]
[BlackElo "2382"]
[Annotator "TA"]
[PlyCount "87"]
[EventDate "2022.09.21"]
[EventType "tourn"]
[EventCountry "AZE"]
[SourceTitle "playchess.com"]
[Source "ChessBase"]
[SourceQuality "1"]
[TimeControl "900+10"]

{[%evp 18,87,48,44,54,52,62,68,81,87,85,66,119,119,127,140,179,170,177,161,175,181,167,168,204,199,215,176,210,198,218,202,222,167,155,159,235,191,283,283,282,271,287,282,285,298,585,608,638,638,666,675,656,590,909,1075,967,803,1378,1323,1230,1191,1442,1470,1339,1209,2293,2252,1993,1908,1487,1143]} 1. c4 {[%emt 0:00:04]} e5 {[%emt 0:00:13]} 2. Nc3 {[%emt 0:00:03]} Nc6 {[%emt 0:00:12]} 3. Nf3 {[%emt 0:00:18]} g6 {[%emt 0:00:14]} 4. d4 {[%emt 0:01:01]} exd4 {[%emt 0:00:02]} 5. Nxd4 {[%emt 0:00:02]} Bg7 {[%emt 0:00:02]} 6. Nxc6 {[%emt 0:00:20]} bxc6 {[%emt 0:00:01]} 7. g3 {[%emt 0:00:15]} d6 {[%emt 0:00:35]} 8. Bg2 {[%emt 0:00:06]} Ne7 {[%emt 0:00:02]} 9. O-O {[%emt 0:00:30]} O-O {[%emt 0:00:09]} 10. Bg5 {[%emt 0:01:31] [#]} Bb7 $146 {[%emt 0:00:48] A27: English Opening: Three Knights Variation.} ({Predecessor:} 10... Be6 11. Qd3 Rb8 12. b3 c5 13. Rad1 h6 14. Bc1 Re8 15. Qd2 Kh7 16. Bb2 Ng8 17. Rfe1 Nf6 18. h3 {½-½ (33) So,W (2765)-Mamedyarov,S (2817) Kolkata 2018}) 11. Qd2 {[%emt 0:00:22]} Qd7 {[%emt 0:00:32]} 12. Bh6 {[%emt 0:01:07] White is more active.} Qe6 {[%emt 0:00:23] White is slightly better.} 13. Bxg7 {[%emt 0:00:11]} Kxg7 {[%emt 0:00:02]} 14. Rac1 {[%emt 0:00:16]} Rab8 {[%emt 0:00:10]} (14... h5 $14) 15. Qd4+ $16 {[%emt 0:00:24]} Qe5 {[%emt 0:01:58]} 16. Qxa7 {[%emt 0:01:11]} Nf5 {[%emt 0:01:01]} 17. Rfd1 {[%emt 0:00:15]} h5 {[%emt 0:00:13]} 18. e4 {[%emt 0:00:35]} Ne7 {[%emt 0:00:10]} 19. f4 {[%emt 0:00:35][%cal Bf2f4,Bf4f5][%mdl 32]} Qe6 {[%emt 0:00:09]} 20. Qd4+ {[%emt 0:00:35]} Kh7 {[%emt 0:00:28]} 21. c5 {[%emt 0:00:22]} Rfd8 {[%emt 0:00:41]} 22. b3 {[%emt 0:00:59]} h4 {[%emt 0:01:06]} 23. f5 {[%emt 0:01:44]} Qe5 {[%emt 0:02:16]} 24. Qxe5 {[%emt 0:01:05]} dxe5 {[%emt 0:00:02]} 25. Kf2 {[%emt 0:00:10]} ({Don't play} 25. gxh4 $6 gxf5 26. exf5 Kg7 $16) 25... hxg3+ {[%emt 0:00:23]} 26. hxg3 {[%emt 0:00:02] Hoping for f6.} ({Worse is} 26. Kxg3 gxf5 27. exf5 Nxf5+ 28. Kf2 Rxd1 29. Rxd1 Nd4 $11) 26... Kg7 {[%emt 0:00:44]} (26... gxf5 $16 27. exf5 Kh6 28. Rh1+ Kg7) 27. fxg6 {[%emt 0:00:24]} Kxg6 {[%emt 0:01:05]} (27... Nxg6 {is a better defense.} 28. Rxd8 Rxd8) 28. Rxd8 $18 {[%emt 0:00:23]} Rxd8 {[%emt 0:00:01]} 29. Rd1 {[%emt 0:00:02] Against Rd2+} Rc8 {[%emt 0:02:26]} 30. Rd7 {[%emt 0:02:03]} Kf6 {[%emt 0:00:02]} 31. Bf1 {[%emt 0:00:12] Inhibits Ba6.} Ng8 $2 {[%emt 0:00:52] [#]} (31... Ke6) 32. Bc4 {[%emt 0:00:07] White is clearly winning.} Nh6 {[%emt 0:00:02]} 33. a4 {[%emt 0:00:51]} Kg5 {[%emt 0:00:47]} 34. a5 {[%emt 0:00:27]} Ng4+ {[%emt 0:00:26]} 35. Kf3 {[%emt 0:00:41]} Rf8 {[%emt 0:01:31]} 36. Rxf7 {[%emt 0:00:16]} Rxf7+ {[%emt 0:00:36]} 37. Bxf7 {[%emt 0:00:03][%mdl 4096] [#] Endgame Bc4 is the strong threat. KBN-KBN} Nf6 {[%emt 0:00:03]} 38. Be6 {[%emt 0:00:18]} Ba6 {[%emt 0:00:09]} 39. Nd1 {[%emt 0:00:22]} Nh7 {[%emt 0:00:32]} 40. Bc4 {[%emt 0:00:28]} Bc8 {[%emt 0:00:04]} 41. a6 {[%emt 0:00:03][%cal Ba5a6,Ba6a7][%mdl 32]} Kf6 {[%emt 0:00:11]} 42. a7 {[%emt 0:00:01]} Bb7 {[%emt 0:00:01]} 43. Nf2 {[%emt 0:00:04]} Ng5+ {[%emt 0:00:03]} 44. Ke3 {[%emt 0:00:01] White took control after the opening.  Weighted Error Value: White=0.11 (very precise) /Black=0.38} 1-0

[Event "Susha Chess Rapid Women 2022"]
[Site "Shusha"]
[Date "2022.09.22"]
[Round "3.4"]
[White "Efroimski, Marsel"]
[Black "Balajayeva, Khanim"]
[Result "1-0"]
[ECO "C50"]
[WhiteElo "2462"]
[BlackElo "2379"]
[Annotator "TA"]
[PlyCount "103"]
[EventDate "2022.09.21"]
[EventType "tourn"]
[EventCountry "AZE"]
[SourceTitle "playchess.com"]
[Source "ChessBase"]
[SourceQuality "1"]
[TimeControl "900+10"]

{[%evp 11,103,3,17,18,28,21,28,18,16,10,25,0,0,0,0,0,0,0,0,-14,-4,-60,-7,0,-17,-88,-74,-83,-81,-91,-52,-62,-49,-63,-57,-55,-50,-62,-51,-51,-56,-62,-39,-33,0,0,14,15,31,0,10,10,11,10,10,4,145,143,121,143,204,205,334,296,350,333,427,420,437,440,438,436,425,431,571,430,419,393,655,643,619,577,800,558,1104,732,1270,1071,29984,29985,29999,29982,29987,29986]} 1. e4 {[%emt 0:00:01]} e5 {[%emt 0:00:01]} 2. Nf3 {[%emt 0:00:00]} Nc6 {[%emt 0:00:01]} 3. Bc4 {[%emt 0:00:01]} Nf6 {[%emt 0:00:08]} 4. d3 {[%emt 0:00:01]} Bc5 {[%emt 0:00:09]} 5. c3 d6 {[%emt 0:00:04]} 6. O-O {[%emt 0:00:07]} a6 {[%emt 0:00:01]} 7. a4 {[%emt 0:00:02] C54: Giuoco Piano: 4 c3 Nf6, main lines with 5 d4 and 5 d3.} Ba7 {[%emt 0:00:09]} 8. Re1 {[%emt 0:00:15]} O-O {[%emt 0:00:03]} 9. h3 {[%emt 0:00:01] White has an edge.} b5 {[%emt 0:00:23]} 10. Bb3 {[%emt 0:05:40]} b4 {[%emt 0:00:03]} 11. Bg5 {[%emt 0:00:19]} Rb8 {[%emt 0:00:34]} 12. Nbd2 {[%emt 0:01:21]} h6 {[%emt 0:01:05] [#]} 13. Be3 $146 {[%emt 0:00:06]} ({Predecessor:} 13. Bh4 Na5 14. Bc2 g5 15. Bg3 Nh5 16. Bh2 Qf6 17. Qe2 Kh8 18. d4 {0-1 (60) Kuosmanen,K (2225)-Maekelae,A (2247) ICCF email 2020}) 13... Bxe3 {[%emt 0:00:03]} 14. Rxe3 {[%emt 0:00:05]} Na5 {[%emt 0:01:42]} 15. Bc2 {[%emt 0:00:14]} c5 {[%emt 0:00:12]} 16. Nc4 {[%emt 0:01:05]} (16. d4 $11) 16... Be6 {[%emt 0:05:14]} (16... bxc3 $15 17. bxc3 Nxc4 18. dxc4 Be6) 17. Nxa5 $11 {[%emt 0:00:09]} Qxa5 {[%emt 0:00:01]} 18. c4 {[%emt 0:00:06]} (18. d4 $11) 18... Qc7 {[%emt 0:01:55]} 19. b3 {[%emt 0:00:42]} Qe7 {[%emt 0:00:42]} 20. Nh2 {[%emt 0:00:18]} Nh7 {[%emt 0:00:23][%cal Bf6h7,Bh7g5,Bg5e6,Be6d4][%mdl 32]} 21. Qe2 {[%emt 0:00:28]} Bd7 {[%emt 0:00:48]} 22. Rf1 {[%emt 0:00:08]} Ng5 {[%emt 0:00:26]} 23. f4 $1 {[%emt 0:00:29]} exf4 {[%emt 0:01:44]} 24. Rxf4 {[%emt 0:00:05]} Ne6 {[%emt 0:00:10]} 25. Rf2 {[%emt 0:00:38]} Nd4 {[%emt 0:00:01]} 26. Qd2 {[%emt 0:00:12]} Rbe8 {[%emt 0:00:19]} 27. Nf3 {[%emt 0:00:08]} Nxf3+ {[%emt 0:00:08]} 28. Rexf3 {[%emt 0:01:07]} Qe5 {[%emt 0:00:12]} 29. d4 {[%emt 0:00:32]} cxd4 {[%emt 0:00:26]} 30. Rd3 {[%emt 0:00:30][%cal Bf3d3,Bd3d4,Bd4d6][%mdl 32]} (30. Qxb4 $5 {[%cal Rb4d2]} Bc6 31. Rf5 $14) 30... f5 {[%emt 0:00:52]} 31. Rxd4 {[%emt 0:00:15] [#] aiming for Rd5.} fxe4 {[%emt 0:00:02] Threatens to win with ...Rxf2.} 32. Rxf8+ {[%emt 0:00:33]} ({Not} 32. Rxe4 $2 Qa1+ 33. Kh2 Rxe4 34. Rxf8+ Kxf8 $19) 32... Rxf8 {[%emt 0:00:23]} 33. Bxe4 {[%emt 0:00:13]} Kh8 {[%emt 0:00:39] White stays focused until the end.} (33... Be8 $1 $11 {keeps the balance.}) 34. Rxd6 $16 {[%emt 0:00:45]} Qxe4 {[%emt 0:01:04]} 35. Rxd7 {[%emt 0:00:06][%mdl 4096] Endgame KQR-KQR} Qb1+ {[%emt 0:00:14] [#]} (35... Re8 $16 {keeps fighting.}) 36. Qd1 $1 $18 {[%emt 0:00:34] Active counter play!} ({But not} 36. Kh2 $6 Qxb3 37. Qd4 Qc3 $16) 36... Qb2 {[%emt 0:00:18]} (36... Qe4 $142 37. Qd4 Qxd4+ 38. Rxd4 Rf6 39. Rd8+ Kh7) 37. Qd4 {[%emt 0:00:10]} Qc1+ {[%emt 0:00:14]} 38. Kh2 {[%emt 0:00:02][%csl Gd7][%cal Rd4g7]} Qg5 {[%emt 0:00:02]} 39. c5 {[%emt 0:00:24]} Rc8 {[%emt 0:00:09]} 40. Rd5 {[%emt 0:00:12]} Qe7 {[%emt 0:00:02]} 41. Qxb4 {[%emt 0:00:25]} Qc7+ {[%emt 0:00:00]} 42. Rd6 {[%emt 0:00:01]} Rb8 {[%emt 0:00:07]} 43. Qc4 {[%emt 0:00:49] b4 is the strong threat.} a5 {[%emt 0:00:01] Against b4} 44. Kh1 {[%emt 0:00:27]} Qe7 $2 {[%emt 0:00:50]} (44... Re8 45. Rd1 Qc6) 45. Rd1 {[%emt 0:00:13]} Rc8 {[%emt 0:00:16]} 46. c6 {[%emt 0:00:01]} Rc7 {[%emt 0:00:08]} 47. Qd5 {[%emt 0:00:14]} Kh7 {[%emt 0:00:13]} 48. Qd3+ {[%emt 0:00:08]} g6 {[%emt 0:00:05]} 49. Qd6 {[%emt 0:00:09]} Kg8 50. Qxg6+ {[%emt 0:00:19] White mates.} Qg7 {[%emt 0:00:26]} 51. Qe8+ {[%emt 0:00:05]} Kh7 {[%emt 0:00:01]} 52. Rd7 {[%emt 0:00:02] Weighted Error Value: White=0.19 (very precise) /Black=0.31} 1-0

[Event "Susha Chess Rapid Women 2022"]
[Site "Shusha"]
[Date "2022.09.22"]
[Round "3.5"]
[White "Mammadzada, Gunay"]
[Black "Ozturk Orenli, Kubra"]
[Result "1-0"]
[ECO "C99"]
[WhiteElo "2473"]
[BlackElo "2319"]
[Annotator "TA"]
[PlyCount "81"]
[EventDate "2022.09.21"]
[EventType "tourn"]
[EventCountry "AZE"]
[SourceTitle "playchess.com"]
[Source "ChessBase"]
[SourceQuality "1"]
[TimeControl "900+10"]

{[%evp 26,81,28,26,31,-37,-45,-35,-45,-74,-74,-129,-111,-109,-145,-150,-64,-75,-39,-35,-39,-47,-4,-95,0,0,159,168,168,158,202,194,193,184,281,262,274,251,367,112,271,201,235,232,239,211,192,217,204,204,308,267,252,181,187,195,663,643]} 1. e4 {[%emt 0:00:02]} e5 {[%emt 0:00:01]} 2. Nf3 {[%emt 0:00:02]} Nc6 {[%emt 0:00:01]} 3. Bb5 {[%emt 0:00:01]} a6 {[%emt 0:00:01]} 4. Ba4 {[%emt 0:00:02]} Nf6 {[%emt 0:00:02]} 5. O-O {[%emt 0:00:02]} b5 {[%emt 0:00:06]} 6. Bb3 {[%emt 0:00:02]} Be7 {[%emt 0:00:02]} 7. Re1 {[%emt 0:00:04]} d6 {[%emt 0:00:06]} 8. c3 {[%emt 0:00:06]} O-O {[%emt 0:00:06]} 9. h3 {[%emt 0:00:03]} Na5 {[%emt 0:00:04]} 10. Bc2 {[%emt 0:00:04]} c5 {[%emt 0:00:01]} 11. d4 {[%emt 0:00:01]} Qc7 {[%emt 0:00:17]} 12. Nbd2 {[%emt 0:00:05]} cxd4 {[%emt 0:00:08]} 13. cxd4 {[%emt 0:00:02]} Nc6 {[%emt 0:00:04]} 14. Nb3 {[%emt 0:02:20]} a5 {[%emt 0:00:47][%cal Ba6a5,Ba5a4][%mdl 32] C99: Closed Ruy Lopez: Chigorin Defence: 11 d4 Qc7 12 Nbd2 cxd4.} 15. a3 {[%emt 0:01:19]} (15. Be3 $14) 15... a4 $15 {[%emt 0:00:30]} 16. Nbd2 {[%emt 0:00:01]} exd4 {[%emt 0:00:20] [#] Black is slightly better.} (16... Nxd4 17. Nxd4 exd4 18. Nf3 $14) 17. Nf1 $146 {[%emt 0:00:29]} ({Predecessor:} 17. b3 Ne5 18. Nxd4 Qc3 19. Rb1 Qxd4 20. Nf3 Qxd1 21. Bxd1 Nxe4 22. Nxe5 dxe5 23. Bf3 {0-1 (30) Law,K (1338)-Plyusnin,A (2031) ICCF email 2019}) 17... Nd7 {[%emt 0:00:37][%cal Bf6d7,Bd7e5,Be5c4][%mdl 32]} 18. Bf4 {[%emt 0:01:45]} ({Better is} 18. b4) 18... Nde5 $17 {[%emt 0:00:47]} 19. Rc1 {[%emt 0:03:24]} Qb6 {[%emt 0:00:45]} 20. Ng3 {[%emt 0:00:30] [#]} Re8 {[%emt 0:01:18]} (20... g6 $1 $17 21. Bh6 Re8) 21. Nf5 $15 {[%emt 0:00:11][%cal Rf3d4]} Bxf5 {[%emt 0:00:49]} 22. exf5 {[%emt 0:00:01][%cal Rf3e5]} Bf6 {[%emt 0:00:48]} 23. Be4 {[%emt 0:02:18] Hoping for Bxe5.} Nc4 {[%emt 0:02:57]} 24. Bd5 {[%emt 0:00:20]} (24. Bg5 $11) 24... Rxe1+ {[%emt 0:02:04]} (24... Qc5 $17 25. Be4 (25. Rxe8+ Rxe8 26. Bxc4 bxc4 $17) 25... h6) 25. Nxe1 $11 {[%emt 0:00:07][%cal Bf3e1,Be1d3,Bd3f4][%mdl 32]} Be5 $2 {[%emt 0:04:02]} (25... h6 $11) 26. Nd3 $16 {[%emt 0:01:36] White is more active.} Bxf4 {[%emt 0:00:39]} 27. Nxf4 {[%emt 0:00:01] Qh5 is the strong threat.} Rf8 {[%emt 0:01:34]} 28. Bxc4 {[%emt 0:02:03]} bxc4 {[%emt 0:00:01]} 29. Rxc4 {[%emt 0:00:02]} Ne5 {[%emt 0:00:29]} (29... d5 $142 30. Nxd5 Qb5 31. Qxa4 Qxa4 32. Rxa4 Rd8) 30. Rb4 $18 {[%emt 0:00:16]} ({Not} 30. Rxa4 Qxb2 31. Rxd4 (31. Qxd4 Qxd4 32. Rxd4 Ra8 $16) 31... Qxa3 32. Rxd6 Qb4 $16) 30... Qc5 {[%emt 0:00:14][%cal Od4d3]} 31. Rxd4 {[%emt 0:00:02]} Nc4 {[%emt 0:00:15]} (31... Rb8 $142 32. Rxa4 h6) 32. Rd5 $2 {[%emt 0:00:28]} (32. f6 $18 {and White stays clearly on top.}) 32... Qc6 {[%emt 0:00:14] Black cannot hold the game after this.} (32... Nxb2 $16 {keeps fighting.} 33. Rxc5 Nxd1) 33. Qd4 {[%emt 0:00:52]} h6 {[%emt 0:00:20]} 34. Nh5 {[%emt 0:00:59][%csl Gh5][%cal Rd4g7]} f6 {[%emt 0:00:01] [#]} 35. Qg4 $1 {[%emt 0:00:14][%csl Gh5][%cal Rg4g7]} Rf7 {[%emt 0:00:13]} 36. Rd4 {[%emt 0:00:06]} Ne5 {[%emt 0:00:04]} 37. Qd1 {[%emt 0:00:04]} Nc4 {[%emt 0:00:14]} (37... Qc8 $142 38. Rxd6 (38. Rxa4 Qxf5 39. Nf4 Rb7 $16) 38... Qxf5) 38. Qc2 {[%emt 0:00:25]} Rc7 {[%emt 0:00:09]} 39. Rg4 {[%emt 0:00:13] And now Nxf6+ would win.} d5 {[%emt 0:00:16] [#]} 40. Qc3 $1 {[%emt 0:00:11] Threatens to win with Qg3.} Kh7 $2 {[%emt 0:00:11]} (40... Kh8 41. Nf4 Rb7) 41. Qg3 {[%emt 0:00:06] Weighted Error Value: White=0.30/Black=0.59} 1-0

[Event "Susha Chess Rapid Women 2022"]
[Site "Shusha"]
[Date "2022.09.22"]
[Round "4.1"]
[White "Balajayeva, Khanim"]
[Black "Ozturk Orenli, Kubra"]
[Result "0-1"]
[ECO "C47"]
[WhiteElo "2379"]
[BlackElo "2319"]
[Annotator "TA"]
[PlyCount "100"]
[EventDate "2022.09.21"]
[EventType "tourn"]
[EventCountry "AZE"]
[SourceTitle "playchess.com"]
[Source "ChessBase"]
[SourceQuality "1"]
[TimeControl "900+10"]

{[%evp 9,100,29,19,18,35,16,39,26,43,-4,12,-2,0,0,0,0,-12,-186,-191,-185,-188,-239,-221,-222,-165,-160,-154,-187,-176,-239,-233,-231,-231,-228,-220,-270,-267,-322,-330,-322,-322,-315,-304,-306,-306,-315,-315,-386,-377,-382,-381,-427,-416,-576,-576,-576,-569,-554,-528,-653,-633,-606,-570,-653,-646,-646,-646,-639,-584,-585,-570,-557,-557,-639,-637,-636,-625,-1057,-1064,-2077,-1771,-1893,-1182,-29961,-29961,-29959,-29956,-29946,-29951,-29952,-29955,-4943,-4627]} 1. e4 {[%emt 0:00:01]} e5 {[%emt 0:00:01]} 2. Nf3 {[%emt 0:00:01]} Nc6 {[%emt 0:00:02]} 3. Nc3 {[%emt 0:00:02]} Nf6 {[%emt 0:00:02]} 4. a3 {[%emt 0:00:01]} Bd6 {[%emt 0:00:52]} 5. Bc4 {[%emt 0:01:05]} O-O {[%emt 0:00:12]} 6. d3 {[%emt 0:00:01] C47: Scotch Four Knights and Four Knights with 4 g3.} h6 {[%emt 0:00:10]} 7. O-O {[%emt 0:00:36]} Re8 {[%emt 0:00:32]} 8. Re1 {[%emt 0:02:05] White is slightly better.} Bf8 {[%emt 0:02:23]} 9. d4 {[%emt 0:00:53] [#]} (9. Bd2 $14) 9... d6 $146 {[%emt 0:00:52]} ({Predecessor:} 9... exd4 10. Nxd4 Nxd4 11. Qxd4 d6 12. h3 Be6 13. Bf4 Bxc4 14. Qxc4 Nd7 15. Rad1 Nb6 {½-½ (38) Peltola,L (1966)-Grahn,L (2024) Mali Losinj 2019}) 10. h3 {[%emt 0:00:01]} exd4 {[%emt 0:01:30]} 11. Nxd4 {[%emt 0:00:01]} d5 {[%emt 0:02:10]} 12. Nxd5 {[%emt 0:04:41]} Nxd5 {[%emt 0:00:09]} 13. Bxd5 {[%emt 0:00:02] This move loses the game for White.} (13. Nxc6 $1 $11 bxc6 14. exd5) 13... Nxd4 $19 {[%emt 0:00:12]} 14. Qxd4 {[%emt 0:00:18]} c6 {[%emt 0:00:04]} 15. c4 {[%emt 0:00:01]} (15. Bd2 $142) 15... cxd5 {[%emt 0:00:11]} 16. cxd5 {[%emt 0:00:01]} b6 {[%emt 0:00:16][%cal Bb7b6,Bb6c5][%mdl 32] Hoping for ...Qh4.} 17. Bf4 {[%emt 0:00:56]} Bb7 {[%emt 0:00:18]} 18. Rad1 {[%emt 0:01:45]} Qh4 {[%emt 0:00:39]} 19. Bg3 {[%emt 0:00:13] [#]} (19. Qe3 {was worth a try.}) 19... Qxg3 $3 {[%emt 0:00:40][%mdl 512]} 20. fxg3 {[%emt 0:00:02]} Bc5 {[%emt 0:00:01]} 21. Qxc5 {[%emt 0:00:43]} bxc5 {[%emt 0:00:01]} 22. Kf2 {[%emt 0:00:01]} Re5 {[%emt 0:00:48]} 23. g4 {[%emt 0:00:04]} Rae8 {[%emt 0:00:10]} 24. Rc1 {[%emt 0:01:27]} Rxe4 {[%emt 0:00:26]} 25. Rxe4 {[%emt 0:00:04]} Rxe4 {[%emt 0:00:01]} 26. Rxc5 {[%emt 0:00:01][%mdl 4096] Endgame KRB-KR} Rd4 {[%emt 0:00:08]} 27. Rb5 {[%emt 0:02:45]} Bxd5 {[%emt 0:00:43]} 28. Rb8+ {[%emt 0:00:13]} Kh7 {[%emt 0:00:01]} 29. Rd8 {[%emt 0:00:01]} Rd1 {[%emt 0:00:32]} 30. Rd7 {[%emt 0:00:25]} a5 {[%emt 0:00:37]} 31. b4 {[%emt 0:00:21]} axb4 {[%emt 0:00:01]} 32. axb4 {[%emt 0:00:01]} Bb3 {[%emt 0:00:11]} 33. Rc7 {[%emt 0:00:15]} Rb1 {[%emt 0:00:30]} 34. g3 {[%emt 0:00:14]} Bd5 {[%emt 0:00:08]} 35. Rc5 {[%emt 0:00:02]} Be6 {[%emt 0:00:08]} 36. Rb5 {[%emt 0:00:06]} Rb2+ {[%emt 0:00:34]} 37. Kf3 {[%emt 0:00:02]} Rb3+ {[%emt 0:00:13]} 38. Kf2 {[%emt 0:00:05]} Bc4 {[%emt 0:00:10]} 39. Rb8 {[%emt 0:00:03]} Bd5 {[%emt 0:00:11]} 40. Rb5 {[%emt 0:00:15]} Be4 {[%emt 0:00:21]} 41. Rb8 {[%emt 0:00:13]} Kg6 {[%emt 0:01:40]} 42. h4 {[%emt 0:00:03]} h5 {[%emt 0:00:26]} 43. gxh5+ {[%emt 0:00:02]} Kxh5 {[%emt 0:00:01]} 44. Rb5+ {[%emt 0:00:07]} f5 {[%emt 0:00:04] ( -> ...Rf3+)} 45. Rb6 {[%emt 0:00:02]} g6 {[%emt 0:00:35] Threatens to win with ...Rf3+.} 46. Rb8 {[%emt 0:00:10]} Kg4 {[%emt 0:00:31]} 47. Rg8 {[%emt 0:00:02]} Rf3+ {[%emt 0:00:41]} 48. Ke2 {[%emt 0:00:02]} Rxg3 {[%emt 0:00:20]} 49. Rxg6+ {[%emt 0:00:04]} Kxh4 {[%emt 0:00:01]} 50. Rf6 {[%emt 0:00:09]} Kg5 {[%emt 0:00:06] Weighted Error Value: White=0.39/Black=0.07 (flawless)} 0-1